Cogmind - Beta 11.1 @@@ ROGUE MODE // 2022.08.23 @ 16:17:52 Player: ILikeMonsters1890 Result: Destroyed by as-46756 with Assembled Blade Performance ------------- Evolutions (1) 500 Regions Visited (4) 800 Robots Destroyed (53) 265 Value Destroyed (1132) 1132 Prototype IDs (3) 60 Alien Tech Used (0) 0 Bonus (160) 160 TOTAL SCORE: 2917 Bonus ------- High Alert Combat Kills 160 Cogmind --------- Core Integrity 0/400 Matter 300/300 Energy 68/100 System Corruption 9% Temperature Cool (0) Movement Rolling (80) Location -9/Mines Parts ------- > --- POWER (1) -------- (None) > --- PROPULSION (3) --- Wheel Wheel > --- UTILITY (3) ------ Heat Sink Small Storage Unit > --- WEAPON (2) ------- (None) > --- INVENTORY (8) ---- (None) Peak State ------------ > --- POWER ------------ Ion Engine > --- PROPULSION ------- Compact Wheel Compact Wheel Compact Wheel > --- UTILITY ---------- Heat Sink Small Storage Unit Light Armor Plating > --- WEAPON ----------- Heavy Assault Rifle Rocket Launcher > --- INVENTORY -------- Light Ion Engine Wheel Wheel Compact Wheel Compact Wheel Improved Medium Laser Assault Rifle Assault Rifle [Rating: 12] Favorites ----------- Power Ion Engine Engine Ion Engine Propulsion Aluminum Leg Leg Aluminum Leg Wheel Compact Wheel Utility Small Storage Unit Device Heat Sink Storage Small Storage Unit Processor Signal Interpreter Protection Light Armor Plating Weapon Assault Rifle Energy Gun EM Pulse Gun Energy Cannon Beam Cannon Ballistic Gun Assault Rifle Launcher Rocket Launcher Build | -11 -10 -10 -9 -9 ------- Run | Scr Mat Min Mat Min Slots Evolved 2 | . . . 2 . Power . | . . . . . Propulsion 1 | . . . 1 . Utility 1 | . . . 1 . Weapon . | . . . . . Parts Attached 50 | 6 2 7 23 12 Power 3 | 1 . . 1 1 Engine 3 | 1 . . 1 1 Core . | . . . . . Reactor . | . . . . . Propulsion 16 | 2 . 2 7 5 Treads . | . . . . . Leg 6 | . . 2 4 . Wheel 10 | 2 . . 3 5 Hover . | . . . . . Flight . | . . . . . Utility 4 | 1 1 . 2 . Device 1 | . 1 . . . Storage 1 | 1 . . . . Processor 1 | . . . 1 . Hackware . | . . . . . Protection 1 | . . . 1 . Artifact . | . . . . . Weapon 27 | 2 1 5 13 6 Energy Gun 5 | 1 . 2 1 1 Energy Cannon 1 | . . 1 . . Ballistic Gun 14 | 1 1 2 7 3 Ballistic Cannon . | . . . . . Launcher 7 | . . . 5 2 Special Weapon . | . . . . . Impact Weapon . | . . . . . Slashing Weapon . | . . . . . Piercing Weapon . | . . . . . Special Melee Weapon . | . . . . . Unidentified Prototypes 1 | . . . 1 . Parts Lost 17 | . . 1 4 12 Power 3 | . . . 1 2 Propulsion 6 | . . 1 . 5 Utility 2 | . . . 1 1 Weapon 6 | . . . 2 4 Highest Loss Streak 7 | . . 1 2 7 To Critical Strikes 1 | . . . 1 . Average Slot Usage (%) 96 | . 98 99 98 68 Engine 12 | . 14 14 10 6 Leg 22 | . . 27 24 . Wheel 7 | . 28 . 8 28 Device 12 | . 13 14 11 11 Storage 12 | . 14 14 11 11 Processor 2 | . . . 6 . Protection 1 | . . . 4 2 Energy Gun 10 | . 14 14 6 3 Energy Cannon 1 | . . 1 1 . Ballistic Gun 11 | . 14 12 11 4 Naked Turns . | . . . . . Heaviest Build 21 | 13 15 16 21 21 Greatest Support 48 | 20 20 20 48 48 Greatest Overweight (x) 1 | . . . . 1 Average Overweight (x) . | . . . . . Largest Inventory Capacity 8 | 8 8 8 8 8 Average Capacity 7 | 7 8 8 8 8 Most Carried 8 | 6 8 8 8 7 Average Carried 6 | 3 6 7 6 3 Final Capacity 8 | 8 8 8 8 8 Final Carried 8 | 6 8 8 7 . Class Distribution -------------------- 97% | Mutant Dominant Class ---------------- Mutant | -10/Materials Mutant | -10/Mines Mutant | -9/Materials Mutant | -9/Mines Resources | -11 -10 -10 -9 -9 ----------- Run | Scr Mat Min Mat Min Matter Collected 1173 | 178 104 227 608 56 Remotely . | . . . . . Salvage Created 1499 | . 104 378 924 93 Parts 119 | . 11 27 77 4 Haulers Intercepted 2 | . . . 2 . Recyclers Shooed 1 | . . . 1 . Parts Field Recycled . | . . . . . Retrieved Matter . | . . . . . Parts Self-Destructed . | . . . . . Prevented . | . . . . . Kills | -11 -10 -10 -9 -9 ------- Run | Scr Mat Min Mat Min Combat Hostiles Destroyed 40 | . 2 12 16 10 Melee 1 | . . . . 1 Guns 24 | . 2 10 9 3 AOE 15 | . . 2 7 6 Classes Destroyed 12 | . 2 4 6 . Worker 9 | . . 1 8 . Builder 5 | . . 1 4 . Hauler 2 | . . . 2 . Recycler 1 | . . . 1 . Operator 1 | . 1 . . . Watcher 3 | . . . 3 . Swarmer 9 | . . 6 . 3 Grunt 17 | . 2 5 10 . Brawler 1 | . . . 1 . Duelist 1 | . . . 1 . Sentry 4 | . . . 4 . Assembled 8 | . . 1 . 7 Best Kill Streak 8 | . 2 4 8 5 Combat Bots Only 5 | . 2 4 4 5 Max Kills in Single Turn 3 | . 1 2 3 3 Gunslinging 1 | . . 1 . . Exploded 3 | . . 1 1 3 Melee 1 | . . . . 1 Uniques/NPCs Destroyed . | . . . . . Combat | -11 -10 -10 -9 -9 -------- Run | Scr Mat Min Mat Min Damage Taken 1863 | . 65 279 627 892 Core 478 | . 11 48 103 316 Absorbed by Shields . | . . . . . Regen/Repaired (Parts) 84 | . . . 84 . Core Remaining (%) 88 | 100 . 76 . . Volleys Fired 138 | . 14 60 51 13 Largest 2 | . 2 2 2 2 Hottest 100 | . 60 80 100 56 Shots Fired 265 | . 28 120 102 15 Gun 239 | . 28 120 78 13 Cannon 3 | . . . 3 . Launcher 23 | . . . 21 2 Special . | . . . . . Kinetic 120 | . 14 48 56 2 Thermal 34 | . . 20 3 11 Explosive 23 | . . . 21 2 Electromagnetic 88 | . 14 52 22 . Robot Hit Streak 9 | . 6 8 9 3 Robot Miss Streak 4 | . 3 4 3 2 Penetration Max . | . . . . . Secondary Targets 4 | . 1 2 1 . Max Gunslinging Chain 1 | . 1 1 1 . Shots Hit Robots 125 | . 17 40 60 8 Core Hits 105 | . 9 21 54 21 Critical Kills 1 | . . . 1 . Critical Parts Destroyed . | . . . . . Critical Strikes 2 | . . . 2 . Destroy 1 | . . . 1 . Corrupt 1 | . . . 1 . Melee Attacks . | . . . . . Impact . | . . . . . Slashing . | . . . . . Piercing . | . . . . . Sneak Attacks . | . . . . . Combat Hostiles . | . . . . . Follow-up Attacks . | . . . . . Damage Inflicted 3306 | . 225 668 1954 459 Guns 1412 | . 225 496 614 77 Cannons 53 | . . . 53 . Explosions 1781 | . . 169 1287 325 Melee . | . . . . . Ramming 60 | . . 3 . 57 Kinetic 767 | . 93 247 427 . Thermal 346 | . . 169 100 77 Explosive 1511 | . . . 1186 325 Electromagnetic 622 | . 132 249 241 . Impact . | . . . . . Slashing . | . . . . . Piercing . | . . . . . Highest Corruption 9 | . . . 4 9 Average Corruption 5 | . . . 4 5 Corruption Purged . | . . . . . Corruption Blocked . | . . . . . Effects 6 | . . . . 6 Message Errors 2 | . . . . 2 Matter Fused 1 | . . . . 1 Heat Flow Errors 1 | . . . . 1 Energy Discharges 1 | . . . . 1 Data Loss (major) 1 | . . . . 1 Overload Shots . | . . . . . Overflow Damage 129 | . . . 57 72 Projectiles . | . . . . . Explosions 129 | . . . 57 72 Melee . | . . . . . Knockbacks 1 | . . 1 . . Impact 1 | . . 1 . . Kinetic . | . . . . . Secondary . | . . . . . Self-Inflicted Damage 148 | . . 25 47 76 Shots 4 | . . 1 1 2 Rammed 33 | . . . . 33 Targets Rammed 34 | . . 1 . 33 Kicked 1 | . . 1 . . Crushed . | . . . . . Highest Temperature 69 | . 12 2 13 69 Average Temperature 12 | . 7 2 8 50 Received Heat Transfer 380 | . 36 57 267 20 Siege Activations . | . . . . . Robots Corrupted . | . . . . . Combat Hostiles . | . . . . . Parts Fried 1 | . . . 1 . Impact Corruptions . | . . . . . Robots Melted . | . . . . . Combat Hostiles . | . . . . . Parts Melted . | . . . . . Heat Transferred 486 | . . 150 161 175 Parts Sabotaged . | . . . . . Parts Stolen . | . . . . . Parts Stripped . | . . . . . Power Chain Reactions 4 | . . 2 2 . Missiles Intercepted . | . . . . . Alert | -11 -10 -10 -9 -9 ------- Run | Scr Mat Min Mat Min Peak Influence 1089 | . 80 191 1089 571 Initial 424 | . . 31 46 424 Average 252 | . 35 79 495 534 Maximum Alert Level 3 | . . . 3 2 Low Security (%) 64 | 100 100 100 19 . Level 1 8 | . . . 24 . Level 2 19 | . . . 33 100 Level 3 7 | . . . 21 . Level 4 . | . . . . . Level 5 . | . . . . . High Security . | . . . . . Max Security . | . . . . . Squads Dispatched 5 | . . . 4 1 Investigation 3 | . . . 2 1 Extermination . | . . . . . Reinforcement 2 | . . . 2 . Assault . | . . . . . Garrison . | . . . . . Intercept . | . . . . . Searches Triggered . | . . . . . Construction Impeded 1 | . . . 1 . Haulers Reinforced . | . . . . . Active Scanning Responses . | . . . . . Cargo Convoy Interrupts . | . . . . . Stealth | -11 -10 -10 -9 -9 --------- Run | Scr Mat Min Mat Min Distress Signals 3 | . 1 . 2 . Communications Jammed . | . . . . . Distress Signals . | . . . . . Times Spotted 59 | . 5 12 28 14 Peak Tracking Total 8 | . 4 3 5 8 Tactical Retreats 3 | . . . 2 1 Traps | -11 -10 -10 -9 -9 ------- Run | Scr Mat Min Mat Min Traps Triggered 1 | . . . 1 . Indirectly 1 | . . . 1 . Trap Hack Attempts . | . . . . . Triggered . | . . . . . Disarmed . | . . . . . Reprogrammed . | . . . . . Reused . | . . . . . Traps Extracted . | . . . . . Installed . | . . . . . Triggered . | . . . . . Machines | -11 -10 -10 -9 -9 ---------- Run | Scr Mat Min Mat Min Machines Disabled 9 | . . 1 6 2 Max in Single Turn 3 | . . 1 3 1 Machines Sabotaged . | . . . . . Garrisons Compromised . | . . . . . Overloaded Fab Kills . | . . . . . Hacking | -11 -10 -10 -9 -9 --------- Run | Scr Mat Min Mat Min Machines Accessed 6 | . 1 . 4 1 Terminals 5 | . 1 . 3 1 Fabricators . | . . . . . Repair Stations 1 | . . . 1 . Recycling Units . | . . . . . Scanalyzers . | . . . . . Garrison Access . | . . . . . Total Hacks 17 | . 3 . 10 4 Successful 5 | . 1 . 3 1 Failed 12 | . 2 . 7 3 Catastrophic 2 | . 1 . 1 . Database Lockouts . | . . . . . Manual 3 | . 1 . 1 1 Terminals 15 | . 3 . 8 4 Fabricators . | . . . . . Repair Stations 2 | . . . 2 . Recycling Units . | . . . . . Scanalyzers . | . . . . . Garrison Access . | . . . . . Terminal Hacks 3 | . 1 . 1 1 Prototype ID Bank 1 | . . . 1 . Zone Layout 2 | . 1 . . 1 Fabricator Hacks . | . . . . . Repair Station Hacks 2 | . . . 2 . Scan Component 1 | . . . 1 . Repair 1 | . . . 1 . Recycling Unit Hacks . | . . . . . Scanalyzer . | . . . . . Garrison Access Hacks . | . . . . . Unauthorized Hacks . | . . . . . Terminals . | . . . . . Fabricators . | . . . . . Repair Stations . | . . . . . Recycling Units . | . . . . . Scanalyzers . | . . . . . Garrison Access . | . . . . . Data Cores Recovered 1 | . 1 . . . Used . | . . . . . Hacking Detections 6 | . 1 . 4 1 Full Trace Events 3 | . . . 2 1 Feedback Events . | . . . . . Feedback Blocked . | . . . . . Robot Schematics Acquired . | . . . . . Robots Built . | . . . . . Authchips . | . . . . . Time . | . . . . . Total Robot Build Rating . | . . . . . Part Schematics Acquired . | . . . . . Parts Built . | . . . . . Authchips . | . . . . . Time . | . . . . . Total Part Build Rating . | . . . . . Parts Repaired 1 | . . . 1 . Time 26 | . . . 26 . Parts Recycled . | . . . . . Recycled Matter . | . . . . . Retrieved Matter . | . . . . . Retrieved Components . | . . . . . Parts Scanalyzed . | . . . . . Part Schematics Acquired . | . . . . . Parts Damaged . | . . . . . Bothacking | -11 -10 -10 -9 -9 ------------ Run | Scr Mat Min Mat Min Used RIF Installer . | . . . . . Robots Hacked . | . . . . . Non-combat . | . . . . . Combat . | . . . . . Robot Hacks Applied . | . . . . . Relay Couplers Released . | . . . . . Fabnet Peak Effective % . | . . . . . Robots Rewired . | . . . . . Allies Hacked . | . . . . . Hacks Repelled . | . . . . . Allies | -11 -10 -10 -9 -9 -------- Run | Scr Mat Min Mat Min Total Allies . | . . . . . Largest Group . | . . . . . Highest-Rated Group . | . . . . . Highest-Rated Ally . | . . . . . Total Orders . | . . . . . Ally Attacks . | . . . . . Total Damage . | . . . . . Kills . | . . . . . Allies Corrupted . | . . . . . Allies Melted . | . . . . . Intel | -11 -10 -10 -9 -9 ------- Run | Scr Mat Min Mat Min Robot Analysis Total . | . . . . . Derelict Logs Recovered 1 | . . 1 . . Drone Launches . | . . . . . Drone Recoveries . | . . . . . Exploration | -11 -10 -10 -9 -9 ------------- Run | Scr Mat Min Mat Min Turns Passed 2287 | 57 139 1131 773 187 Spaces Moved 1255 | 52 115 553 421 114 Core 16 | 8 . . . 8 Treads . | . . . . . Legs 841 | . . 553 288 . Wheels 398 | 44 115 . 133 106 Hover . | . . . . . Flight . | . . . . . Fastest Speed 50 | 50 80 120 100 80 Average Speed 110 | 75 80 120 113 97 Slowest Speed 120 | 80 80 120 120 100 Overloaded Moves . | . . . . . Propulsion Burnouts . | . . . . . Robots Hopped . | . . . . . Cave-ins Triggered . | . . . . . Exploration Rate (%) 34 | 4 19 86 33 32 Regions Visited 4 Branch Regions 2 Pre-discovered Areas . | . . . . . Known Exits Taken . | . . . . . Unknown Exits Taken 4 | 1 1 1 1 . Scrap Searched 1 | . . 1 . . Spaces Dug . | . . . . . Terrain Destroyed 244 | . . 6 215 23 Melee . | . . . . . Projectile . | . . . . . AOE 244 | . . 6 215 23 Terrain Rammed . | . . . . . Walls Destroyed . | . . . . . Machines Disabled . | . . . . . Actions | -11 -10 -10 -9 -9 --------- Run | Scr Mat Min Mat Min Total 1887 | 69 135 900 611 172 Wait 352 | . . 267 85 . Move 1251 | 51 114 552 420 114 Hop . | . . . . . Pick Up 42 | 12 4 7 19 . Fast Attach . | . . . . . Attach 23 | 6 1 2 7 7 Detach . | . . . . . Swap 27 | . 1 5 16 5 Drop 20 | . 1 6 13 . Fire 138 | . 14 60 51 13 Melee . | . . . . . Ram 33 | . . . . 33 Kick 1 | . . 1 . . Crush . | . . . . . Escape Stasis . | . . . . . Rewire . | . . . . . Trap . | . . . . . Miscellaneous . | . . . . . Route ------- -11/Scrapyard -10/Materials -10/Mines -9/Materials -9/Mines (discovered 1 exit: [*Mat]) History --------- Turn | Location | Event 5 | -11/Scrapyard | Discovered new exit (range 16) 58 | -11/Scrapyard | Entered Materials 150 | -10/Materials | Discovered new exit (range 8) 197 | -10/Materials | Entered Mines 202 | -10/Mines | Met a Derelict bent on vengeance 248 | -10/Mines | Discovered new exit (range 7) 308 | -10/Mines | Build established: Mutant 692 | -10/Mines | Excavation squad dispatched 692 | -10/Mines | A large section of the Mines collapsed 942 | -10/Mines | Excavation squad dispatched 1328 | -10/Mines | Entered Materials 1328 | -9/Materials | Evolved 2 slots: Propulsion x1, Utility x1 1552 | -9/Materials | Repaired Aluminum Leg 1765 | -9/Materials | Discovered new exit (range 7) 2101 | -9/Materials | Entered Mines 2123 | -9/Mines | Assembled infested the area 2128 | -9/Mines | Assisted by a Guerilla fighting off Assembled 2192 | -9/Mines | Lost 7 parts (1p2n1u3w) 2229 | -9/Mines | Core integrity fell below 50% 2254 | -9/Mines | Core integrity fell below 20% 2281 | -9/Mines | Lost 4 parts (1p2n1w) 2284 | -9/Mines | Discovered new exit (range 14) 2288 | -9/Mines | Destroyed by as-46756 with Assembled Blade Last Messages --------------- 02267_ R-06 Scavenger collects Lgt. Ion Engine. 02267_ Slammed into as-40477. 02269_ U-05 Engineer lays Concrete. 02269_ Slammed into as-40477. 02271_ U-05 Engineer builds a Wall. 02271_ Slammed into as-40477. 02271_ R-06 Scavenger collects Cmb. Airjet. 02272_ Slammed into as-40477. 02272_ Destabilizing: Core damaged (-8). 02273_ as-70820 sneak attacks. 02273_ U-05 Engineer knocked back. 02273_ Slammed into as-40477. 02273_ as-40477 destroyed. 02274_ R-06 Scavenger collects Sml. Storage Unit. 02275_ Acquired 10 matter. 02276_ as-46756 sneak attacks. 02276_ R-06 Scavenger destroyed. 02284_ System corrupted: Energy discharge (-32). 02284_ EXIT=FOUND 02288_ Broken Com. Wheel destroyed. Map ----- +----------------------------------------------------+ | ?????????????????????????????????????????????????? | | ?????????????????????????????????????????????????? | | ?????????????????????????????????????????????????? | | ?????????????????????????????????????????????????? | | ?????????????????????????????????????????????????? | | ?????????????????????????????????????????????????? | | ?????????????????????????????????????????????????? | | ?????????????????????????????????????????????????? | | ?????????????????????????????????????????????????? | | ?????????????????????????????????????????????????? | | ?????????????????????????????????????????????????? | | ?????????????????????????????????????????????????? | | ?????????????????????????????????????????????????? | | ?????????????????????????????????????????????????? | | ?????????????????????????????????????????????????? | | ?????????????????????????##?????????????????#?##?? | | ??????????????????????????"###?????????????? ## ?? | | ?????????????????????????## ##????????????? ""## | | ?????????????????????##### ##????????????? | | ?????????????????????# ##???????????? | | ?????????????#???????# ##???????????? | | ???????????### #???## #???????????? " | | ??????????? ## ##???????????? | | ????????????# % === ###??????????# | | ?????????????# =%! ;#?????????## | | ?????????????# * @a%*%!= %%%######????# # | | ?????????? =% % %!%! !%###?## | | ????????????# = ## = % %%% ######## # | | ????????????# ####### %%% %*=%%%= | | ????????????# < ???????## %%%%%%!####### # | | ????????????# ?????????####%%%% % #???# | | ????????????# k ?????????????#%%# ###### # | | ????????????# % ??????????????## # ### | | ?????????????# ????????????????# % | | ?????????????##?????????????????##### #### ##### | | ????????????????????????????????????### # ##?? | | ??????????????????????????????????????# #?? | | ??????????????????????????????????????# #?? | | ??????????????????????????????????????## #?? | | ??????????????????????????????????????## ##? | | ??????????????????????????????????????## * T#? | | ??????????????????????????????????????## ## ###? | | ???????????????????????????????????????########??? | | ?????????????????????????????????????????????????? | | | | | | | | | | | | | +----------------------------------------------------+ Best States ------------- Heat Dissipation 38 Energy Generation 10 Energy Capacity 250 Matter Stores 300 Matter Capacity 300 Sight Range 16 Terrain Scan Density 10 Armor Coverage 150 Evasion (%) 55 Item Schematics ----------------- None Robot Schematics ------------------ None Fabricated ------------ Nothing Alien Tech Used ----------------- None Achievements -------------- None Challenges ------------ None Game ------ Seed ConcussiveSuspensionCharge Manual? 0 Play Time 00:27:05 Cumulative 31.6 hours Start 2022.08.23 @ 15:52:55 End 2022.08.23 @ 16:17:52 Sessions 1 Manual Loads 0 Difficulty Rogue Special Mode None Game No. 36 Rogue 36 Adventurer 0 Explorer 0 Win Type - Total 0 Types 0/0/0/0/0/0/0/0/0 Lore% 31 Gallery% 25 Achievement% 21 Wizard Run 0 Options --------- ASCII 0 Keyboard 0 Movement Numpad Keybinds 0 Fullscreen 2 Font 18/SmallcapsGlow Map View 76x50 Tactical HUD 1 Map Filters NONE Filters NONE Steam 1 RUN: 77025066-e00b-40f5-a67b-af063b0fe00a